bitfinex/quotes_SOLUSD_20250924
["timestamp","ask_amount","ask_price","bid_price","bid_amount"]
[1758692294332,0.69,209.71,209.67,37.64]
[1758692294557,2.49301429,209.73,209.67,37.64]
[1758692294558,0.69,209.7,209.67,37.64]
[1758692294740,0.69,209.69,209.67,37.64]
[1758692294936,2.49335463,209.71,209.67,37.64]
[1758692295140,0.69,209.68,209.67,37.64]
[1758692295855,0.69,209.68,209.66,4.76953402]
[1758692296032,0.69,209.68,209.67,37.62]
[1758692300047,0.69,209.7,209.67,37.62]
[1758692300245,0.69,209.69,209.67,37.62]
[1758692300563,0.72,209.68,209.67,37.62]
[1758692300740,26.72,209.68,209.61,0.71]
[1758692300935,26.72,209.68,209.58,0.71]
[1758692301142,26.72,209.68,209.59,37.58]
[1758692301362,26.72,209.68,209.6,37.62]
[1758692301363,26.0,209.68,209.6,37.62]
[1758692301534,26.0,209.64,209.6,37.62]
[1758692301730,0.72,209.63,209.6,37.62]
[1758692303661,26.72,209.66,209.6,37.62]
[1758692303867,0.72,209.65,209.6,37.62]
[1758692304162,0.72,209.64,209.56,0.71]
[1758692304464,0.72,209.64,209.57,37.58]
[1758692304761,0.72,209.64,209.58,14.30559401]
[1758692305634,0.72,209.64,209.59,4.77122]
[1758692305839,0.72,209.64,209.6,37.58]
[1758692306260,30.76994313,209.65,209.6,37.58]
[1758692306463,0.72,209.63,209.56,0.71]
[1758692306655,0.72,209.63,209.57,37.6]
[1758692306965,0.72,209.62,209.57,37.6]
[1758692307169,0.72,209.64,209.58,0.71]
[1758692307678,26.0,209.61,209.58,0.71]
[1758692308338,26.0,209.62,209.59,0.71]
[1758692308544,26.0,209.61,209.6,37.58]
[1758692313379,26.0,209.62,209.6,37.58]
[1758692314042,26.0,209.61,209.6,37.58]
[1758692316465,26.72,209.61,209.57,13.59559401]
[1758692316652,0.72,209.67,209.59,13.59559401]
[1758692316971,0.72,209.69,209.61,13.59559401]
[1758692317145,0.72,209.69,209.62,38.23]
[1758692317344,0.72,209.68,209.62,38.23]
[1758692317876,0.72,209.68,209.63,4.77030959]
[1758692318174,0.72,209.67,209.63,5.48030959]
[1758692319975,26.0,209.65,209.63,0.71]
[1758692320352,26.0,209.65,209.64,37.52]
[1758692321772,0.72,209.67,209.64,37.52]
[1758692321970,26.0,209.69,209.64,37.52]
[1758692322269,2.49335463,209.71,209.66,13.59559401]
[1758692322481,2.49335463,209.71,209.67,38.19]
[1758692322772,2.49335463,209.71,209.68,38.21]
[1758692322976,26.0,209.7,209.68,38.21]
[1758692324058,2.49335463,209.71,209.68,38.21]
[1758692324372,26.0,209.69,209.68,0.71]
[1758692324572,26.0,209.69,209.68,37.48]
[1758692325571,2.49335463,209.71,209.66,5.47962701]
[1758692325572,26.0,209.68,209.66,5.47962701]
[1758692325790,26.0,209.68,209.67,51.78559401]
[1758692326276,28.49341616,209.68,209.67,51.78559401]
[1758692328677,2.49341616,209.68,209.67,56.55499354]
[1758692329271,2.49341616,209.68,209.67,51.78559401]
[1758692330679,2.49341616,209.68,209.67,56.53499354]
[1758692332190,5.42761897,209.75,209.67,56.53499354]
[1758692332191,0.66,209.75,209.68,13.59559401]
[1758692332363,0.66,209.75,209.7,13.59559401]
[1758692332562,0.66,209.75,209.71,37.42]
[1758692332870,2.49299356,209.74,209.71,37.42]
[1758692333074,2.49299356,209.74,209.71,38.11]
[1758692334665,2.49299356,209.74,209.71,42.87848543]
[1758692334868,2.49299356,209.74,209.72,0.69]
[1758692335067,2.49299356,209.74,209.73,51.66559401]
[1758692335480,2.49299356,209.74,209.73,50.97559401]
[1758692336690,2.49299356,209.74,209.73,56.4336291]
[1758692336888,2.49299356,209.74,209.73,50.97559401]
[1758692337096,2.49299356,209.74,209.71,0.69]
[1758692337293,2.49299356,209.74,209.72,37.38]
[1758692337587,3.15299356,209.74,209.72,37.38]
[1758692340294,2.49299356,209.74,209.72,37.38]
[1758692340587,2.49299356,209.74,209.72,42.14824611]
[1758692340884,2.49299356,209.74,209.73,0.69]
[1758692342266,2.49299356,209.74,209.72,37.38]
[1758692342593,2.49299356,209.74,209.72,38.07]
[1758692343093,0.66,209.73,209.69,0.69]
[1758692343407,0.66,209.72,209.67,13.59559401]
[1758692343696,0.66,209.71,209.68,37.34]
[1758692343864,19.18044297,209.74,209.68,37.34]
[1758692344060,0.66,209.7,209.68,37.34]
[1758692344587,0.66,209.72,209.68,37.34]
[1758692344777,5.42836208,209.72,209.68,37.34]
[1758692344981,0.66,209.71,209.68,37.34]
[1758692345873,14.41251296,209.74,209.68,38.03]
[1758692345874,0.66,209.73,209.68,38.03]
[1758692346079,2.49299356,209.74,209.69,0.69]
[1758692346279,3.15299356,209.74,209.7,37.34]
[1758692346475,2.49299356,209.74,209.71,0.69]
[1758692346688,2.49299356,209.74,209.72,37.36]
[1758692347075,2.49299356,209.74,209.73,14.28559401]
[1758692347474,2.49299356,209.74,209.73,16.65742037]
[1758692347673,2.49433477,209.78,209.73,16.65742037]
[1758692347885,2.49224506,209.77,209.74,42.83780776]
[1758692348188,2.49224506,209.77,209.76,13.59559401]
[1758692348378,2.49224506,209.77,209.76,50.97559401]
[1758692349888,2.49224506,209.77,209.76,37.38]
[1758692350075,2.49224506,209.77,209.75,13.59559401]
[1758692350277,2.49224506,209.77,209.76,37.36]
[1758692351999,2.49224506,209.77,209.69,11.92200122]
[1758692352170,3.15224506,209.77,209.72,13.59559401]
[1758692352373,0.66,209.76,209.74,13.59559401]
[1758692352603,0.66,209.76,209.75,37.34]
[1758692353273,2.49224506,209.77,209.75,37.34]
[1758692355094,2.49224506,209.77,209.75,42.10756298]
[1758692355403,2.49224506,209.77,209.76,14.30559401]
[1758692356989,2.49224506,209.77,209.76,13.59559401]
[1758692358001,2.49224506,209.77,209.76,18.36294717]
[1758692359787,2.49224506,209.77,209.76,13.59559401]
[1758692361385,2.49224506,209.77,209.76,50.93559401]
[1758692362702,2.49224506,209.77,209.76,56.37294717]
[1758692363003,2.49224506,209.77,209.76,55.70294717]
[1758692365209,2.49224506,209.77,209.76,50.93559401]
[1758692366288,2.49224506,209.77,209.76,55.70294717]
[1758692366491,2.49224506,209.77,209.76,56.37294717]
[1758692367999,2.49224506,209.77,209.76,50.93559401]
[1758692368203,2.49224506,209.77,209.76,51.60559401]
[1758692368999,2.49224506,209.77,209.76,50.93559401]
[1758692370507,2.49224506,209.77,209.76,55.70294717]
[1758692370912,2.49224506,209.77,209.76,56.37294717]
[1758692372010,2.49224506,209.77,209.76,55.70294717]
[1758692374212,2.49224506,209.77,209.76,55.68294717]
[1758692376585,2.49224506,209.77,209.76,50.91559401]
[1758692376791,2.49224506,209.77,209.76,13.59559401]
[1758692376996,2.49224506,209.77,209.76,50.91559401]
[1758692377201,2.49224506,209.77,209.76,56.35294717]
[1758692377721,2.49224506,209.77,209.76,55.68294717]
[1758692378216,2.49224506,209.77,209.76,56.35294717]
[1758692380005,2.49224506,209.77,209.76,55.68294717]
[1758692380624,2.49224506,209.77,209.76,56.35294717]
[1758692380922,2.49224506,209.77,209.76,55.68294717]
[1758692381724,2.49224506,209.77,209.76,19.03294717]
[1758692381897,2.49224506,209.77,209.76,50.91559401]
[1758692382311,2.49224506,209.77,209.76,55.68294717]
[1758692383008,2.49224506,209.77,209.76,50.91559401]
[1758692383334,2.49224506,209.77,209.76,55.68294717]
[1758692384303,2.49224506,209.77,209.76,56.35294717]
[1758692384706,2.49224506,209.77,209.76,55.68294717]
[1758692386197,2.49224506,209.77,209.76,18.36294717]
[1758692386393,2.49224506,209.77,209.76,55.68294717]
[1758692387023,2.49224506,209.77,209.76,50.91559401]
[1758692388900,3.21224506,209.77,209.7,0.67]
[1758692389117,3.21224506,209.77,209.71,13.59559401]
[1758692389309,3.21224506,209.77,209.72,37.99]
[1758692389512,3.21224506,209.77,209.74,13.59559401]
[1758692389708,3.21224506,209.77,209.75,37.32]
[1758692390803,2.49224506,209.77,209.76,15.78098164]
[1758692392326,2.49224506,209.77,209.76,20.5483348]
[1758692396429,2.49224506,209.77,209.76,19.8783348]
[1758692396736,2.49224506,209.77,209.76,20.5483348]
[1758692397319,2.49224506,209.77,209.76,19.03294717]
[1758692397520,2.49224506,209.77,209.76,56.35294717]
[1758692397729,2.49224506,209.77,209.76,57.8683348]
[1758692398421,2.49433477,209.78,209.76,57.8683348]
[1758692398620,2.49150565,209.84,209.78,13.59559401]
[1758692398824,2.49150565,209.84,209.83,13.59559401]
[1758692399027,2.49150565,209.84,209.83,55.66135677]
[1758692399530,4.98497049,209.84,209.83,55.66135677]
[1758692400526,4.98497049,209.84,209.83,56.33135677]
[1758692400852,4.98497049,209.84,209.83,57.8467444]
[1758692401237,0.1,209.9,209.83,69.7611513]
[1758692401429,0.66,209.89,209.83,5.43576276]
[1758692401628,0.66,209.89,209.85,13.59559401]
[1758692401835,0.66,209.88,209.85,13.59559401]
[1758692402035,4.86417749,209.9,209.87,13.59559401]
[1758692402227,4.86417749,209.9,209.88,37.3]
[1758692402425,0.66,209.89,209.88,37.3]
[1758692403754,0.66,209.89,209.87,13.59559401]
[1758692403755,26.0,209.86,209.8,13.59559401]
[1758692403928,0.66,209.85,209.81,37.3]
[1758692404125,0.66,209.84,209.82,13.59559401]
[1758692404456,4.76443456,209.89,209.81,37.3]
[1758692404457,42.67543556,209.89,209.83,37.3]
[1758692405861,26.0,209.83,209.79,13.59559401]
[1758692406033,0.66,209.82,209.8,37.3]
[1758692406544,0.66,209.82,209.81,13.59559401]
[1758692406724,30.76515934,209.86,209.81,13.59559401]
[1758692406925,30.76515934,209.86,209.82,37.3]
[1758692407135,26.0,209.84,209.82,37.3]
[1758692407343,0.66,209.83,209.82,37.3]
[1758692412669,26.0,209.87,209.83,13.59559401]
[1758692412830,26.0,209.89,209.83,13.59559401]
[1758692413030,0.66,209.88,209.83,13.59559401]
[1758692413231,0.69,209.87,209.83,13.59559401]
[1758692413654,0.69,209.86,209.83,13.59559401]
[1758692414055,4.76465756,209.88,209.83,13.59559401]
[1758692414244,0.69,209.85,209.84,37.3]
[1758692415349,0.69,209.87,209.84,37.3]
[1758692415554,0.69,209.86,209.84,37.3]
[1758692416146,0.69,209.85,209.84,37.3]
[1758692417065,26.0,209.87,209.84,37.3]
[1758692417261,0.69,209.87,209.84,37.3]
[1758692417759,0.69,209.87,209.83,18.36132765]
[1758692417962,0.69,209.87,209.84,37.3]
[1758692418151,26.0,209.86,209.85,37.3]
[1758692418349,26.69,209.86,209.85,37.3]
[1758692419161,26.0,209.86,209.85,37.3]
[1758692419555,26.69,209.86,209.83,13.59559401]
[1758692419860,0.69,209.85,209.84,37.3]
[1758692420044,0.69,209.85,209.83,13.59559401]
[1758692420241,0.69,209.85,209.84,37.3]
[1758692421254,0.72,209.87,209.84,37.3]
[1758692421451,0.72,209.86,209.84,37.3]
[1758692422753,0.72,209.85,209.84,37.3]
[1758692423153,26.72,209.88,209.84,37.3]
[1758692423365,0.82,209.9,209.85,14.19559401]
[1758692423554,0.82,209.9,209.86,37.3]
[1758692424081,26.0,209.89,209.87,13.59559401]
[1758692424286,26.0,209.89,209.88,37.3]
[1758692424454,0.1,209.9,209.88,37.3]
[1758692425443,0.82,209.9,209.88,37.3]
[1758692425648,0.1,209.9,209.88,37.3]
[1758692425949,0.1,209.9,209.89,13.59559401]
[1758692427670,0.1,209.9,209.89,37.28]
[1758692430165,0.82,209.9,209.82,0.6]
[1758692430373,0.82,209.9,209.83,50.87559401]
[1758692430578,0.72,209.89,209.83,50.87559401]
[1758692430779,0.72,209.88,209.83,50.87559401]
[1758692430951,5.48485443,209.87,209.82,13.59559401]
[1758692431150,0.72,209.86,209.83,37.28]
[1758692431766,2.49141594,209.85,209.83,37.28]
[1758692432354,2.49141594,209.85,209.82,13.59559401]
[1758692432561,3.21141594,209.85,209.83,37.28]
[1758692433353,3.21141594,209.85,209.84,37.28]
[1758692433853,2.49141594,209.85,209.84,37.28]
[1758692434861,3.21141594,209.85,209.84,37.28]
[1758692435683,2.49141594,209.85,209.84,37.28]
[1758692435887,3.21141594,209.85,209.84,37.28]
[1758692436461,7.97672449,209.85,209.84,37.28]
[1758692436956,7.97672449,209.85,209.79,13.59559401]
[1758692437156,0.72,209.84,209.81,13.59559401]
[1758692437355,0.72,209.83,209.82,37.28]
[1758692437565,31.48576276,209.83,209.82,37.28]
[1758692438658,0.72,209.83,209.82,37.28]
[1758692438976,28.49141594,209.85,209.82,37.28]
[1758692439187,26.0,209.84,209.82,37.28]
[1758692439677,2.49141594,209.85,209.83,13.59559401]
[1758692441184,2.49141594,209.85,209.84,37.28]
[1758692443888,2.49141594,209.85,209.82,4.76594053]
[1758692443889,2.49141594,209.85,209.76,11.91836263]
[1758692444062,0.72,209.84,209.79,13.59559401]
[1758692444263,0.72,209.83,209.81,13.59559401]
[1758692444586,7.25679398,209.85,209.82,37.28]
[1758692445166,0.72,209.84,209.82,37.28]
[1758692445372,0.72,209.83,209.82,37.28]
[1758692445768,0.72,209.83,209.77,13.59559401]
[1758692445969,0.72,209.82,209.79,13.59559401]
[1758692446368,0.72,209.81,209.73,0.6]
[1758692446562,0.72,209.81,209.74,50.87559401]
[1758692446782,0.72,209.8,209.74,50.87559401]
[1758692446979,0.72,209.8,209.74,51.47559401]
[1758692447568,42.67937475,209.84,209.76,13.59559401]
[1758692447773,4.76621705,209.81,209.77,37.28]
[1758692447968,5.48621705,209.81,209.77,37.28]
[1758692448687,0.72,209.8,209.77,37.28]
[1758692448882,0.72,209.79,209.71,4.76828553]
[1758692449187,0.72,209.78,209.72,50.87559401]
[1758692449364,0.72,209.77,209.72,50.87559401]
[1758692449567,0.72,209.76,209.72,50.87559401]
[1758692449986,2.49141594,209.85,209.72,50.87559401]
[1758692449987,0.72,209.75,209.72,50.87559401]
[1758692450178,0.72,209.74,209.72,50.87559401]
[1758692450379,0.66,209.74,209.73,37.28]
[1758692450771,0.66,209.74,209.69,13.59559401]
[1758692451088,26.0,209.8,209.7,37.28]
[1758692451280,0.66,209.79,209.7,37.28]
[1758692451472,0.66,209.78,209.7,37.28]
[1758692451671,0.66,209.77,209.7,37.28]
[1758692451866,0.66,209.76,209.7,37.28]
[1758692452083,26.0,209.73,209.7,37.88]
[1758692452279,26.0,209.73,209.71,5.36848981]
[1758692452486,0.66,209.81,209.72,14.19559401]
[1758692452688,0.66,209.81,209.73,37.88]
[1758692452892,0.66,209.81,209.75,13.59559401]
[1758692453184,0.66,209.8,209.76,37.28]
[1758692453394,0.66,209.79,209.76,37.28]
[1758692453588,0.66,209.78,209.77,37.28]
[1758692453973,31.42689865,209.78,209.77,37.28]
[1758692457811,26.0,209.75,209.68,38.66]
[1758692457979,0.66,209.74,209.69,37.28]
[1758692458302,0.66,209.73,209.69,37.28]
[1758692458787,26.66,209.75,209.69,37.88]
[1758692458988,0.66,209.74,209.69,37.28]
[1758692459771,5.42782664,209.74,209.69,37.28]
[1758692459972,26.0,209.73,209.69,37.88]
[1758692460800,31.42758665,209.75,209.69,42.04882329]
[1758692460986,31.42758665,209.75,209.7,0.6]
[1758692461395,26.66,209.75,209.7,0.6]
[1758692461598,26.0,209.75,209.71,14.19559401]
[1758692461781,26.0,209.75,209.72,37.28]
[1758692462099,2.4928812,209.74,209.72,37.28]
[1758692462498,3.1528812,209.74,209.73,37.28]
[1758692463774,7.92068896,209.74,209.73,37.28]
[1758692465683,2.4928812,209.74,209.73,37.28]
[1758692465887,2.4928812,209.74,209.73,56.2436291]
[1758692466078,1.8928812,209.74,209.73,58.61019829]
[1758692466282,14.43383502,209.9,209.74,13.59559401]
[1758692466602,2.49193419,209.81,209.76,13.59559401]
[1758692466783,0.66,209.84,209.77,37.28]
[1758692467185,2.49195151,209.81,209.77,37.28]
[1758692467393,28.49195151,209.81,209.77,42.04701589]
[1758692467591,28.49195151,209.81,209.78,15.9621632]
[1758692467592,2.49195151,209.81,209.78,15.9621632]
[1758692467793,2.49195151,209.81,209.78,13.59559401]
[1758692468188,3.15195151,209.81,209.79,37.28]
[1758692468375,3.15195151,209.81,209.8,37.28]
[1758692468788,28.49195151,209.81,209.8,37.28]
[1758692468988,28.49195151,209.81,209.77,13.59559401]
[1758692469197,0.66,209.8,209.78,37.28]
[1758692469596,28.49195151,209.81,209.78,37.28]
[1758692469888,0.66,209.8,209.78,37.28]
[1758692470401,0.66,209.8,209.77,13.59559401]
[1758692470604,0.66,209.79,209.78,37.28]
[1758692473416,26.0,209.79,209.78,37.28]
[1758692475082,2.49195151,209.81,209.79,13.59559401]
[1758692475517,29.18195151,209.81,209.77,13.59559401]
[1758692475818,28.49195151,209.81,209.8,50.87559401]
[1758692476318,2.49195151,209.81,209.8,50.87559401]
[1758692477904,2.49195151,209.81,209.8,55.64203824]
[1758692479291,2.49195151,209.81,209.8,50.87559401]
[1758692480313,2.49195151,209.81,209.8,50.85559401]
[1758692480314,3.18195151,209.81,209.8,50.85559401]
[1758692480980,3.18195151,209.81,209.8,37.26]
[1758692481984,3.17195151,209.81,209.8,37.26]
[1758692484093,2.49195151,209.81,209.8,37.26]
[1758692484722,2.49195151,209.81,209.8,50.85559401]
[1758692487029,2.49195151,209.81,209.8,55.62203824]
[1758692487324,2.49195151,209.81,209.8,50.85559401]
[1758692488217,2.49195151,209.81,209.8,55.62203824]
[1758692495220,2.49195151,209.81,209.8,57.136618]
[1758692497336,26.68,209.86,209.81,13.59559401]
[1758692497529,0.68,209.85,209.83,13.59559401]
[1758692497734,0.68,209.85,209.84,50.85559401]
[1758692501132,0.78,209.9,209.85,13.59559401]
[1758692501318,0.68,209.89,209.86,37.24]
[1758692501517,0.68,209.88,209.86,37.24]
[1758692502437,0.68,209.87,209.84,13.59559401]
[1758692502634,0.68,209.87,209.86,13.59559401]
[1758692505536,0.1,209.9,209.86,50.83559401]
[1758692505735,0.68,209.87,209.86,50.83559401]
[1758692507642,3.1712185,209.87,209.86,50.83559401]
[1758692507850,2.4912185,209.87,209.86,55.60067549]
[1758692508925,2.4912185,209.87,209.86,50.83559401]
[1758692509252,2.4912185,209.87,209.86,37.24]
[1758692509430,3.1712185,209.87,209.86,37.24]
[1758692514347,7.93607829,209.87,209.86,37.24]
[1758692514727,3.1712185,209.87,209.86,37.24]
[1758692520265,2.4912185,209.87,209.86,50.83559401]
[1758692520469,2.4912185,209.87,209.86,55.60067549]
[1758692521469,2.4912185,209.87,209.86,50.83559401]
[1758692522265,2.4912185,209.87,209.86,55.60067549]
[1758692522565,2.4912185,209.87,209.86,19.87525525]
[1758692522748,2.4912185,209.87,209.86,55.58067549]
[1758692522948,3.1512185,209.87,209.86,13.59559401]
[1758692523160,3.1512185,209.87,209.86,50.81559401]
[1758692523951,2.4912185,209.87,209.86,50.81559401]
[1758692524360,3.1512185,209.87,209.86,50.81559401]
[1758692524664,2.4912185,209.87,209.86,50.81559401]
[1758692524865,3.1512185,209.87,209.86,50.81559401]
[1758692525045,3.1512185,209.87,209.86,37.22]
[1758692526474,9.10958247,209.87,209.86,37.22]
[1758692527747,30.34470229,209.87,209.86,37.22]
[1758692527954,30.34468124,209.87,209.86,37.22]
[1758692528264,29.1512185,209.87,209.86,37.22]
[1758692529860,33.91607293,209.87,209.86,37.22]
[1758692530050,7.91607293,209.87,209.86,37.22]
[1758692531853,3.1512185,209.87,209.86,37.22]
[1758692532737,2.4912185,209.87,209.86,37.22]
[1758692532937,28.4912185,209.87,209.86,37.22]
[1758692533966,2.4912185,209.87,209.86,37.22]
[1758692534166,28.4912185,209.87,209.86,37.22]
[1758692536353,2.4912185,209.87,209.86,55.58067549]
[1758692537149,2.4912185,209.87,209.86,57.09525525]
[1758692537669,3.1612185,209.87,209.86,13.59559401]
[1758692537843,3.1612185,209.87,209.83,4.76573141]
[1758692538043,3.1612185,209.87,209.85,13.59559401]
[1758692538044,0.67,209.86,209.85,13.59559401]
[1758692538872,0.67,209.86,209.84,37.2]
[1758692539171,0.67,209.85,209.82,13.59559401]
[1758692539348,0.67,209.85,209.83,37.2]
[1758692539848,2.49150706,209.85,209.83,37.2]
[1758692540172,2.49150706,209.85,209.82,13.59559401]
[1758692540368,0.67,209.84,209.83,37.2]
[1758692541746,5.43553564,209.84,209.8,13.59559401]
[1758692541966,5.43553564,209.84,209.79,13.59559401]
[1758692541967,0.67,209.83,209.81,37.2]
[1758692542154,0.67,209.82,209.81,37.2]
[1758692543846,0.67,209.82,209.7,11.9214435]
[1758692544049,1.86359006,209.81,209.71,15.11017377]
[1758692544347,0.67,209.8,209.72,37.2]
[1758692544543,0.67,209.79,209.73,13.59559401]
[1758692544775,0.67,209.78,209.73,13.59559401]
[1758692544979,0.67,209.77,209.73,18.36358781]
[1758692545277,1.19378967,209.79,209.73,18.36358781]
[1758692545473,1.19378967,209.78,209.73,18.36358781]
[1758692545778,0.67,209.78,209.73,13.59559401]
[1758692546672,0.67,209.77,209.73,13.59559401]
[1758692547272,0.67,209.77,209.75,13.59559401]
[1758692547669,4.76664741,209.8,209.75,13.59559401]
[1758692547868,1.86382353,209.79,209.75,13.59559401]
[1758692548492,0.67,209.78,209.75,13.59559401]
[1758692548685,0.67,209.77,209.75,13.59559401]
[1758692549555,0.67,209.76,209.71,4.76826486]
[1758692549757,0.67,209.75,209.72,50.79559401]
[1758692549957,4.76696671,209.78,209.72,50.79559401]
[1758692550154,0.67,209.77,209.72,50.79559401]
[1758692551579,0.67,209.77,209.74,13.59559401]
[1758692551770,3.16434055,209.76,209.75,37.2]
[1758692552863,2.49434055,209.76,209.75,37.2]
[1758692553485,2.49434055,209.76,209.75,50.79559401]
[1758692555188,2.49434055,209.76,209.75,55.56317446]
[1758692556393,2.49434055,209.76,209.75,57.93081056]
[1758692559275,26.0,209.83,209.76,13.59559401]
[1758692559475,2.49376575,209.79,209.78,13.59559401]
[1758692559787,26.0,209.82,209.78,13.59559401]
[1758692559989,26.0,209.82,209.8,13.59559401]
[1758692560174,26.0,209.83,209.82,13.59559401]
[1758692560486,26.67,209.83,209.82,13.59559401]
[1758692560796,29.16375112,209.83,209.82,13.59559401]
[1758692560972,2.49375112,209.83,209.82,18.3615839]
[1758692562182,3.16375112,209.83,209.82,50.79559401]
[1758692562882,2.49375112,209.83,209.82,50.79559401]
[1758692563087,2.49375112,209.83,209.82,55.5615839]
[1758692566578,3.16375112,209.83,209.82,55.5615839]
[1758692568188,2.49375112,209.83,209.82,55.5615839]
[1758692573191,0.1,209.91,209.83,13.59559401]
[1758692573373,0.1,209.91,209.89,13.59559401]
[1758692573578,2.59053834,209.9,209.89,50.77559401]
[1758692573792,2.59053834,209.9,209.89,55.63698123]
[1758692574296,2.59053834,209.9,209.89,53.26934513]
[1758692574598,2.59053834,209.9,209.89,60.40138163]
[1758692575293,2.59053834,209.9,209.89,13.59559401]
[1758692575294,3.29053834,209.9,209.89,13.59559401]
[1758692575496,3.29053834,209.9,209.89,37.16]
[1758692576010,3.29053834,209.9,209.86,18.36066194]
[1758692576186,0.7,209.89,209.88,13.59559401]
[1758692577903,0.7,209.89,209.83,14.50472323]
[1758692577904,5.4644004,209.89,209.73,6.59396943]
[1758692578075,5.4644004,209.89,209.8,2.3676361]
[1758692578076,0.7,209.88,209.8,2.3676361]
[1758692578276,0.7,209.87,209.81,50.75559401]
[1758692578598,0.7,209.86,209.78,2.3676361]
[1758692578802,0.7,209.85,209.79,50.75559401]
[1758692578988,0.7,209.84,209.81,13.59559401]
[1758692579181,0.7,209.83,209.82,37.16]
[1758692580379,0.7,209.83,209.77,2.3676361]
[1758692580581,0.7,209.82,209.76,13.59559401]
[1758692580800,0.7,209.81,209.78,13.59559401]
[1758692581100,26.0,209.82,209.79,37.16]
[1758692581101,0.7,209.8,209.79,37.16]
[1758692581496,0.7,209.83,209.79,37.16]
[1758692581806,0.7,209.82,209.79,37.16]
[1758692582005,0.7,209.81,209.79,37.16]
[1758692582386,2.59053834,209.89,209.8,13.59559401]
[1758692582591,2.59053834,209.89,209.79,44.29417687]
[1758692582592,26.0,209.87,209.82,13.59559401]
[1758692582891,0.7,209.86,209.83,37.16]
[1758692583083,0.7,209.85,209.83,37.16]
[1758692583284,0.7,209.84,209.83,50.75559401]
[1758692584003,0.7,209.84,209.83,55.52135677]
[1758692584686,0.7,209.87,209.84,13.59559401]
[1758692584896,0.7,209.86,209.85,37.16]
[1758692588804,26.0,209.87,209.85,37.16]
[1758692589013,0.7,209.89,209.86,13.59559401]
[1758692589205,0.7,209.89,209.87,37.16]
[1758692589588,0.7,209.88,209.87,50.75559401]
[1758692590613,26.0,209.89,209.87,55.52042103]
[1758692591206,2.59053834,209.9,209.88,13.59559401]
[1758692591412,2.59053834,209.9,209.89,37.16]
[1758692591618,2.59053834,209.9,209.89,50.75559401]
[1758692591814,2.59053834,209.9,209.89,53.12323011]
[1758692592491,2.59053834,209.9,209.89,57.88763051]
[1758692595194,2.59053834,209.9,209.89,60.47816885]
[1758692596820,2.59053834,209.9,209.89,58.11053275]
[1758692597021,2.59053834,209.9,209.89,60.47816885]
[1758692597843,2.59053834,209.9,209.89,23.31816885]
[1758692598131,2.59053834,209.9,209.89,60.45816885]
[1758692599148,0.1,209.94,209.9,13.59559401]
[1758692599309,0.1,209.94,209.89,60.45816885]
[1758692599310,0.1,209.94,209.93,15.96323011]
[1758692599506,0.1,209.94,209.93,50.73559401]
[1758692599728,0.1,209.94,209.93,15.96323011]
[1758692599928,0.1,209.94,209.93,60.3594316]
[1758692600134,0.1,209.94,209.93,74.97032189]
[1758692600511,1e-08,209.94,209.93,35.46268579]
[1758692600712,1e-08,209.94,209.93,74.97032189]
[1758692603514,1e-08,209.94,209.93,37.83032189]
[1758692603834,1e-08,209.94,209.93,74.97032189]
[1758692606144,0.1,210.02,209.94,13.59559401]
[1758692606343,0.1,210.02,210.01,15.96323011]
[1758692606640,0.1,210.02,210.01,53.08323011]
[1758692606956,1e-08,210.02,210.01,53.08323011]
[1758692607137,1e-08,210.02,210.01,54.9914905]
[1758692607318,1e-08,210.02,210.01,17.8714905]
[1758692607519,1e-08,210.02,210.01,54.9914905]
[1758692608229,1e-08,210.04,210.02,13.59559401]